bitfinex-derivatives/quotes_SOLF0:USTF0_20241217
["timestamp","ask_amount","ask_price","bid_price","bid_amount"]
[1734408268711,7.29078304,215.32,215.27,7.29078304]
[1734408268909,7.29078304,215.32,215.28,7.30837134]
[1734408269111,7.29078304,215.32,215.29,4.98617134]
[1734408269409,7.29078304,215.32,215.25,9.47078304]
[1734408269713,7.8518,215.34,215.27,2.3224]
[1734408270013,7.29078304,215.33,215.28,4.98804048]
[1734408270213,7.29078304,215.33,215.27,2.3224]
[1734408271108,7.8518,215.34,215.27,2.3224]
[1734408271309,7.29078304,215.33,215.27,2.3224]
[1734408271508,7.29078304,215.33,215.28,2.3223]
[1734408273318,1.82,215.32,215.28,2.3223]
[1734408273923,1.82,215.32,215.25,9.47078304]
[1734408274115,1.82,215.32,215.27,2.3223]
[1734408274316,3.71,215.31,215.27,2.3223]
[1734408274516,3.71,215.31,215.28,4.99148367]
[1734408274813,3.71,215.31,215.27,2.3223]
[1734408275017,3.71,215.31,215.28,4.99193017]
[1734408275316,3.71,215.31,215.3,2.3221]
[1734408275516,3.71,215.31,215.3,7.31465883]
[1734408276018,3.71,215.31,215.3,7.31340838]
[1734408278214,3.71,215.31,215.29,2.18]
[1734408285427,7.29078304,215.3,215.17,3.2578]
[1734408285626,7.29078304,215.28,215.18,11.76031225]
[1734408285827,7.29078304,215.28,215.21,7.29078304]
[1734408286026,2.3225,215.27,215.22,11.90321225]
[1734408286228,7.29078304,215.28,215.23,5.00154488]
[1734408286528,3.1323,215.29,215.24,5.00154488]
[1734408286724,3.1323,215.29,215.22,2.3229]
[1734408286725,7.29078304,215.27,215.22,2.3229]
[1734408286929,7.29078304,215.27,215.23,5.00296341]
[1734408287130,7.29078304,215.27,215.24,5.00296341]
[1734408287326,7.29078304,215.27,215.22,2.3229]
[1734408287925,7.29078304,215.27,215.23,5.00345373]
[1734408288126,2.3223,215.28,215.23,2.3228]
[1734408288524,2.3223,215.28,215.24,5.00050593]
[1734408288723,2.3223,215.28,215.23,2.3228]
[1734408288924,2.3223,215.28,215.24,5.00045634]
[1734408289227,2.3223,215.28,215.23,2.3228]
[1734408289429,2.3223,215.28,215.24,7.32200417]
[1734408289631,3.1323,215.29,215.25,12.28970321]
[1734408289934,3.1323,215.29,215.25,9.47078304]
[1734408290130,1.5776,215.29,215.28,2.3223]
[1734408290332,3.71,215.31,215.27,7.29078304]
[1734408290532,3.71,215.31,215.3,7.29078304]
[1734408290826,3.71,215.31,215.3,14.60568523]
[1734408291426,5.53,215.31,215.3,14.60568523]
[1734408291932,5.53,215.31,215.3,19.17628091]
[1734408293936,5.53,215.31,215.3,14.60568523]
[1734408294240,5.53,215.31,215.3,19.17325631]
[1734408294433,5.53,215.31,215.3,9.61288304]
[1734408294735,5.53,215.31,215.3,19.16663404]
[1734408297337,5.53,215.31,215.3,14.18036027]
[1734408297533,5.53,215.31,215.3,19.16514418]
[1734408300135,5.53,215.31,215.3,4.98478391]
[1734408300933,5.53,215.31,215.3,12.27556695]
[1734408302242,5.53,215.31,215.3,4.98478391]
[1734408302540,1.82,215.31,215.3,12.27556695]
[1734408302937,1.82,215.31,215.3,12.27699908]
[1734408303236,1.82,215.31,215.3,9.61288304]
[1734408303631,1.82,215.31,215.3,14.5987837]
[1734408304836,1.82,215.31,215.3,19.16665071]
[1734408305838,1.82,215.31,215.3,14.5987837]
[1734408306236,1.82,215.31,215.3,9.61288304]
[1734408306540,1.82,215.31,215.3,4.98798967]
[1734408306742,1.82,215.31,215.29,2.18]
[1734408306938,1.82,215.31,215.3,4.98848677]
[1734408307139,1.82,215.31,215.28,9.47078304]
[1734408307338,1.82,215.31,215.29,4.98895236]
[1734408307535,1.82,215.31,215.28,7.29078304]
[1734408307741,1.82,215.31,215.27,2.3223]
[1734408308037,1.82,215.31,215.28,4.99001436]
[1734408308239,1.82,215.31,215.27,4.5023]
[1734408308439,11.43278304,215.31,215.28,4.99072538]
[1734408308637,7.29078304,215.29,215.23,11.79358304]
[1734408308837,7.29078304,215.29,215.24,4.9926283]
[1734408309038,7.29078304,215.25,215.2,2.3231]
[1734408309240,7.29078304,215.25,215.21,4.99422471]
[1734408309440,7.29078304,215.25,215.19,9.47078304]
[1734408309637,7.29078304,215.25,215.21,2.3231]
[1734408309844,7.29078304,215.27,215.22,4.99331084]
[1734408310142,7.29078304,215.27,215.23,4.99317106]
[1734408310343,7.29078304,215.27,215.21,7.29078304]
[1734408310543,7.29078304,215.25,215.22,4.99264068]
[1734408310738,7.29078304,215.25,215.21,2.323]
[1734408312537,7.29078304,215.26,215.21,2.323]
[1734408314547,9.61328304,215.26,215.21,2.323]
[1734408318648,2.3225,215.26,215.21,2.323]
[1734408320442,2.3227,215.25,215.21,2.323]
[1734408327659,2.3225,215.26,215.21,2.323]
[1734408327850,5.45501413,215.27,215.21,2.323]
[1734408329452,2.3226,215.25,215.21,2.323]
[1734408329656,5.45501413,215.27,215.16,61.68818773]
[1734408329858,5.45501413,215.27,215.12,1.5841]
[1734408330060,0.7410337,215.26,215.13,7.1614683]
[1734408330258,5.45501413,215.27,215.14,7.1614683]
[1734408330457,5.45501413,215.27,215.15,2.18]
[1734408330652,4.8039,215.3,215.15,2.18]
[1734408330857,4.8039,215.3,215.16,9.5396643]
[1734408331057,4.8039,215.3,215.17,4.97802965]
[1734408331258,4.8039,215.3,215.18,4.97802965]
[1734408331459,4.8039,215.3,215.14,3.2044]
[1734408331460,4.8039,215.3,215.19,2.18]
[1734408331659,4.8039,215.3,215.2,2.18]
[1734408332453,2.3226,215.27,215.22,2.323]
[1734408332863,2.3226,215.27,215.23,2.3229]
[1734408334056,2.3226,215.27,215.2,2.18]
[1734408334362,2.3226,215.26,215.22,2.323]
[1734408335563,2.3227,215.25,215.21,2.3231]
[1734408335761,5.68314304,215.28,215.2,2.18]
[1734408336062,5.68314304,215.28,215.17,2.18]
[1734408337066,5.68314304,215.28,215.18,2.3234]
[1734408337269,2.18,215.27,215.15,2.18]
[1734408337661,2.3234,215.19,215.14,2.18]
[1734408337856,2.18,215.27,215.09,3.40055179]
[1734408338066,0.74103004,215.26,215.1,11.72084137]
[1734408338269,2.3235,215.19,215.13,2.3239]
[1734408338562,2.18,215.22,215.1,2.18]
[1734408338861,2.18,215.25,215.11,9.54147286]
[1734408339061,2.18,215.25,215.12,9.54141443]
[1734408339267,2.323,215.23,215.18,2.3234]
[1734408339461,2.18,215.26,215.15,2.18]
[1734408339764,5.68314304,215.28,215.16,4.9772172]
[1734408339765,7.86314304,215.28,215.16,4.9772172]
[1734408339966,7.86314304,215.28,215.17,4.9772172]
[1734408340165,2.3228,215.24,215.19,2.3233]
[1734408340360,7.86314304,215.28,215.15,2.18]
[1734408340566,7.86314304,215.28,215.16,9.53895991]
[1734408340770,7.86314304,215.28,215.17,4.97698927]
[1734408341070,7.86314304,215.28,215.18,4.97698927]
[1734408341270,7.86314304,215.28,215.09,5.48062342]
[1734408341271,7.86314304,215.28,215.19,7.15698927]
[1734408341566,2.3226,215.26,215.21,2.3231]
[1734408343968,2.3226,215.26,215.22,2.323]
[1734408344170,8.00564304,215.28,215.19,2.18]
[1734408344371,8.00564304,215.28,215.2,4.9818188]
[1734408344670,8.00564304,215.28,215.21,2.3231]
[1734408344868,8.00564304,215.28,215.19,2.18]
[1734408345063,2.3226,215.26,215.19,2.18]
[1734408345269,2.3226,215.26,215.2,4.98226397]
[1734408345567,2.3226,215.26,215.19,2.18]
[1734408345764,2.3226,215.26,215.21,2.3231]
[1734408345969,2.3228,215.25,215.18,2.18]
[1734408346168,2.3228,215.25,215.19,4.98271204]
[1734408346369,2.3228,215.25,215.2,4.98271204]
[1734408346669,2.3228,215.25,215.17,2.18]
[1734408346865,7.86314304,215.28,215.19,2.3233]
[1734408348062,7.86314304,215.28,215.18,2.3235]
[1734408349466,2.323,215.23,215.19,4.99148681]
[1734408349668,2.323,215.23,215.18,2.3235]
[1734408349967,2.323,215.23,215.19,4.99289375]
[1734408350170,2.323,215.23,215.18,2.3235]
[1734408350369,2.323,215.23,215.19,4.99759057]
[1734408350572,2.323,215.23,215.18,2.3235]
[1734408350772,2.323,215.23,215.19,4.99753068]
[1734408350965,2.323,215.23,215.18,2.3235]
[1734408351382,2.323,215.23,215.19,4.99797337]
[1734408351595,2.323,215.23,215.18,2.3235]
[1734408351799,2.323,215.23,215.19,5.00175525]
[1734408352002,2.323,215.23,215.2,5.00175525]
[1734408352199,2.323,215.23,215.18,2.3235]
[1734408352495,2.323,215.23,215.19,5.00442922]
[1734408352693,2.323,215.23,215.2,5.00442922]
[1734408352990,2.323,215.23,215.18,2.3235]
[1734408353187,2.3231,215.22,215.19,5.00443359]
[1734408353382,2.3231,215.22,215.2,5.00443359]
[1734408353578,2.3231,215.22,215.21,5.00443359]
[1734408354400,2.3231,215.22,215.18,2.3235]
[1734408354575,2.3231,215.22,215.19,5.00705533]
[1734408354773,2.3231,215.22,215.2,5.00705533]
[1734408354973,2.3231,215.22,215.21,5.00705533]
[1734408357590,2.3231,215.22,215.18,2.3235]
[1734408357773,2.3231,215.22,215.19,6.17370879]
[1734408357974,2.3231,215.22,215.2,5.01158903]
[1734408358273,2.18,215.24,215.09,5.48062342]
[1734408358479,3.1406,215.23,215.14,2.3239]
[1734408358683,4.7575,215.23,215.15,9.60045614]
[1734408358880,4.7575,215.23,215.16,5.01318725]
[1734408359071,4.7575,215.23,215.17,5.01318725]
[1734408359272,2.3235,215.19,215.14,2.3239]
[1734408359476,2.3235,215.19,215.15,5.01250345]
[1734408359677,2.3235,215.19,215.16,5.01250345]
[1734408359876,2.3235,215.19,215.17,5.01250345]
[1734408360084,2.3235,215.18,215.14,2.3239]
[1734408360283,2.3235,215.18,215.15,5.01264316]
[1734408360598,2.3235,215.18,215.14,2.3239]
[1734408360782,2.3235,215.18,215.15,5.0134202]
[1734408361004,2.3235,215.18,215.16,5.0134202]
[1734408361280,2.3235,215.18,215.17,5.0134202]
[1734408361676,2.3235,215.18,215.14,2.3239]
[1734408361880,2.3235,215.18,215.15,5.01367579]
[1734408362181,2.3235,215.18,215.16,5.01367579]
[1734408362378,2.3235,215.18,215.14,2.3239]
[1734408362577,2.3235,215.18,215.15,5.0129709]
[1734408362798,2.3235,215.18,215.16,5.0129709]
[1734408362999,2.3235,215.18,215.14,2.3239]
[1734408363178,2.3235,215.18,215.15,5.01337292]
[1734408363481,2.18,215.26,215.16,5.01337292]
[1734408363777,5.68314304,215.28,215.17,9.59858008]
[1734408363975,2.3227,215.26,215.21,2.323]
[1734408364187,2.3227,215.26,215.22,5.01337292]
[1734408364376,2.3227,215.26,215.21,2.323]
[1734408364575,2.3227,215.26,215.22,5.00872956]
[1734408364877,4.7556,215.3,215.23,5.00872956]
[1734408365175,355.8125616,215.43,215.24,5.00780753]
[1734408365382,355.8125616,215.43,215.23,2.18]
[1734408365383,0.74079153,215.35,215.23,2.18]
[1734408365677,2.18,215.34,215.24,7.18609235]
[1734408366013,2.3222,215.31,215.25,2.3227]
[1734408366191,2.3222,215.31,215.25,7.32850513]
[1734408366380,2.3222,215.31,215.25,2.3227]
[1734408366974,2.3222,215.31,215.26,2.3226]
[1734408367180,2.3222,215.31,215.27,5.00191935]
[1734408367479,2.3222,215.31,215.26,2.3226]
[1734408367679,5.3949,215.38,215.27,4.99993519]
[1734408367983,3.8168,215.42,215.28,11.75521817]
[1734408368185,3.8168,215.42,215.33,2.3218]
[1734408368186,0.74057626,215.41,215.33,2.3218]
[1734408368387,0.74057626,215.41,215.33,2.18]
[1734408369380,2.3213,215.38,215.33,2.18]
[1734408371795,2.3216,215.35,215.29,2.18]
[1734408372211,2.3216,215.35,215.26,1.641]
[1734408372420,2.3216,215.35,215.29,2.3223]
[1734408372911,5.44217813,215.4,215.27,2.18]
[1734408373118,2.3215,215.37,215.3,2.3221]
[1734408373323,2.3215,215.37,215.31,2.18]
[1734408374509,2.3215,215.37,215.31,4.5021]
[1734408374923,2.3215,215.37,215.27,4.5630307]
[1734408374924,2.18,215.38,215.28,2.18]
[1734408375113,2.18,215.38,215.27,2.3225]
[1734408375416,2.3218,215.34,215.27,4.5025]
[1734408376827,2.3218,215.34,215.28,2.3224]
[1734408377018,2.3214,215.38,215.27,2.18]
[1734408377219,7.62217813,215.4,215.31,2.322]
[1734408377417,7.62217813,215.4,215.31,4.502]
[1734408378516,2.3214,215.37,215.31,4.502]
[1734408379723,2.3214,215.37,215.32,2.3219]
[1734408380017,2.18,215.36,215.23,3.39782929]
[1734408380232,5.44217813,215.4,215.13,5.56509617]
[1734408380233,19.96850394,215.35,215.13,5.56509617]
[1734408380524,2.18,215.34,215.14,4.98169222]
[1734408380821,0.74077642,215.33,215.15,6.14363351]
[1734408381024,2.18,215.34,215.16,4.98169222]
[1734408381225,0.74085884,215.33,215.17,7.16169222]
[1734408381424,0.74085884,215.33,215.18,4.98169222]
[1734408381629,2.3221,215.31,215.23,2.3229]
[1734408381928,2.3221,215.31,215.24,2.18]
[1734408383524,2.3221,215.31,215.25,2.3227]
[1734408387722,2.3222,215.3,215.25,2.3227]
[1734408389711,3.0978,215.35,215.24,2.18]
[1734408389902,2.3223,215.29,215.24,2.18]
[1734408390809,2.3223,215.29,215.25,2.18]
[1734408391104,3.0978,215.35,215.15,1.16185621]
[1734408391304,0.74078188,215.34,215.16,6.13867248]
[1734408391604,2.18,215.33,215.17,8.31867248]
[1734408391910,0.74078188,215.32,215.18,4.97681627]
[1734408392108,0.74078188,215.32,215.2,2.3231]
[1734408392311,0.74078188,215.32,215.17,2.18]
[1734408392505,0.74078188,215.32,215.18,4.97686765]
[1734408392806,2.18,215.33,215.19,4.97686765]
[1734408393004,0.74079873,215.32,215.17,2.18]
[1734408393203,0.74079873,215.32,215.18,4.97613124]
[1734408393408,2.3227,215.26,215.21,2.3231]
[1734408393603,2.3227,215.26,215.22,2.18]
[1734408396101,2.18,215.33,215.22,2.18]
[1734408396305,0.74080223,215.32,215.22,2.18]
[1734408396911,2.3225,215.28,215.22,2.18]
[1734408397512,2.3225,215.28,215.22,4.503]
[1734408397709,2.3223,215.3,215.22,2.18]
[1734408397905,3.0978,215.35,215.27,2.3225]
[1734408398107,3.0978,215.35,215.27,4.5025]
[1734408398310,2.3219,215.33,215.27,4.5025]
[1734408399406,3.0978,215.35,215.27,4.5025]
[1734408399608,2.322,215.32,215.27,4.5025]
[1734408401914,1.5369,215.35,215.27,2.18]
[1734408402116,2.3217,215.35,215.27,2.18]
[1734408402916,1.5509,215.39,215.27,2.18]
[1734408403211,2.3215,215.37,215.31,2.3221]
[1734408403417,1.5509,215.39,215.32,2.18]
[1734408404414,2.3216,215.36,215.32,2.18]
[1734408404713,1.5509,215.39,215.32,2.18]
[1734408404910,0.74053067,215.38,215.32,2.18]
[1734408406615,2.3219,215.33,215.32,2.18]
[1734408406817,2.3219,215.33,215.29,2.18]
[1734408410509,2.322,215.32,215.29,2.18]
[1734408411716,2.3219,215.33,215.29,2.18]
[1734408412921,2.3219,215.33,215.29,4.5023]
[1734408416917,2.3219,215.33,215.3,2.18]
[1734408417634,2.322,215.32,215.3,2.18]
[1734408418520,2.3221,215.31,215.3,2.18]
[1734408420523,1.5509,215.39,215.25,2.3227]
[1734408420723,1.5509,215.39,215.14,9.2053]
[1734408420724,2.3223,215.29,215.26,2.18]
[1734408421725,2.3222,215.31,215.26,2.18]
[1734408422325,2.3222,215.31,215.27,4.98850367]
[1734408422527,2.3222,215.31,215.26,2.18]
[1734408422724,2.3222,215.31,215.27,4.98834693]
[1734408423028,2.3222,215.31,215.26,2.18]
[1734408423226,2.3222,215.31,215.27,4.98801346]
[1734408423429,2.3222,215.31,215.26,4.5025]
[1734408423629,2.3222,215.31,215.27,4.98840531]
[1734408423829,2.3222,215.31,215.26,4.5025]
[1734408424029,2.3222,215.31,215.27,4.98840532]
[1734408424326,2.3222,215.31,215.26,4.5025]
[1734408424528,2.3222,215.3,215.27,4.98941994]
[1734408424830,2.3222,215.3,215.26,4.5025]
[1734408425126,2.3222,215.3,215.27,4.9894519]
[1734408425327,1.5509,215.39,215.23,1.6175]
[1734408425524,2.3224,215.28,215.24,14.02666042]
[1734408425731,2.3224,215.28,215.25,4.99124524]
[1734408426032,2.3224,215.28,215.26,4.99133552]
[1734408426322,2.3224,215.28,215.24,4.5028]
[1734408426522,2.3224,215.28,215.25,4.99216003]
[1734408426729,2.3224,215.28,215.26,4.99216003]
[1734408426925,2.3224,215.28,215.24,4.5028]
[1734408427119,2.3224,215.28,215.25,4.992095]
[1734408427320,2.3224,215.28,215.26,4.992095]
[1734408427525,2.3224,215.28,215.24,4.5028]
[1734408427824,2.18,215.32,215.25,4.99091485]
[1734408428019,2.2871454,215.31,215.14,3.0499]
[1734408428221,0.7407454,215.3,215.15,11.70835317]
[1734408428429,2.3228,215.25,215.2,2.3233]
[1734408428728,2.3228,215.25,215.21,7.17370095]
[1734408428926,2.3228,215.25,215.22,4.99370095]
[1734408429121,2.3228,215.25,215.21,2.18]
[1734408429431,1.5464,215.31,215.21,2.18]
[1734408429629,2.3226,215.27,215.22,2.323]
[1734408429830,1.5464,215.31,215.22,2.323]
[1734408430031,0.74085015,215.3,215.22,2.323]
[1734408430227,0.74085015,215.3,215.21,2.18]
[1734408430529,2.3227,215.26,215.21,2.18]
[1734408430727,1.5464,215.31,215.21,2.18]
[1734408430928,0.74081197,215.3,215.21,2.18]
[1734408432224,0.74088502,215.29,215.21,2.18]
[1734408432428,0.74088502,215.28,215.21,2.18]
[1734408432630,1.5464,215.31,215.21,2.18]
[1734408432833,0.7408371,215.3,215.21,2.18]
[1734408433024,2.3223,215.29,215.24,2.3228]
[1734408433225,2.3223,215.29,215.25,2.18]
[1734408438339,1.5371,215.34,215.25,2.18]
[1734408438634,2.3224,215.28,215.25,2.18]
[1734408440340,2.3226,215.26,215.23,2.18]
[1734408440538,1.5371,215.34,215.23,2.18]
[1734408440736,0.74078475,215.33,215.22,2.18]
[1734408440932,2.3227,215.26,215.23,4.99329692]
[1734408441141,2.3227,215.26,215.22,2.18]
[1734408441340,1.5371,215.34,215.23,4.993612]
[1734408441540,0.74078813,215.33,215.22,2.18]
[1734408441841,1.5371,215.34,215.22,2.18]
[1734408441842,0.74078821,215.32,215.22,2.18]
[1734408442042,0.74081048,215.31,215.22,2.18]
[1734408442241,2.3228,215.24,215.22,2.18]
[1734408442439,2.3228,215.24,215.21,2.18]
[1734408442639,2.18,215.32,215.21,2.18]
[1734408442842,0.74085289,215.31,215.21,2.18]
[1734408443138,0.74085289,215.31,215.18,1.5109]
[1734408443139,2.3232,215.21,215.2,2.18]
[1734408443346,2.3232,215.21,215.2,7.17360853]
[1734408443943,2.3232,215.21,215.2,4.99360853]
[1734408444143,2.3234,215.19,215.18,2.18]
[1734408444347,2.3234,215.19,215.18,7.17299146]
[1734408444837,2.3234,215.19,215.18,2.18]
[1734408445343,1.5294,215.26,215.15,2.18]
[1734408445543,2.3235,215.18,215.16,4.99158543]
[1734408445742,2.3235,215.18,215.17,4.99158543]
[1734408446650,2.3236,215.17,215.03,1.5354]
[1734408446845,2.3236,215.17,215.13,7.17166346]
[1734408447044,2.3236,215.17,215.14,4.99166346]
[1734408447248,2.3236,215.17,215.13,2.18]
[1734408447440,2.3236,215.17,215.14,4.99157726]
[1734408447640,1.5294,215.26,215.03,1.5354]
[1734408447641,2.3237,215.16,215.03,1.5354]
[1734408447844,2.3237,215.16,215.11,7.17209166]
[1734408448042,2.3237,215.16,215.12,4.99209166]
[1734408448248,2.18,215.22,215.11,2.18]
[1734408448549,2.3238,215.15,215.12,4.99072158]
[1734408448747,2.3238,215.15,215.11,2.18]
[1734408448951,2.3237,215.17,215.12,4.99227157]
[1734408449245,2.18,215.22,215.11,2.18]
[1734408449446,2.18,215.22,215.12,4.99084964]
[1734408449652,2.18,215.22,215.11,4.5042]
[1734408449653,2.3234,215.19,215.11,4.5042]
[1734408449851,2.18,215.22,215.12,4.99072753]
[1734408450149,2.18,215.25,215.11,2.18]
[1734408450340,0.74112722,215.24,215.13,2.324]
[1734408450544,0.74112722,215.24,215.14,2.18]
[1734408451153,2.3236,215.17,215.14,2.18]
[1734408452153,2.3234,215.19,215.14,4.5039]
[1734408452747,1.5294,215.26,215.14,2.18]
[1734408452954,2.3232,215.21,215.15,2.3238]
[1734408453352,2.3233,215.2,215.15,2.3238]
[1734408453557,1.5294,215.26,215.15,2.3238]
[1734408454059,2.323,215.23,215.15,2.3238]
[1734408454251,1.5294,215.26,215.15,2.3238]
[1734408454756,1.5294,215.26,215.14,2.18]
[1734408454757,3.1164,215.27,215.14,2.18]
[1734408454956,3.1164,215.27,215.16,2.3236]
[1734408455359,2.3232,215.21,215.16,2.3236]
[1734408460158,3.1164,215.27,215.16,2.3236]
[1734408460358,2.3233,215.2,215.16,2.3236]
[1734408461163,2.3233,215.2,215.14,2.18]
[1734408461363,2.3233,215.2,215.15,4.98804084]
[1734408461565,2.3233,215.2,215.16,4.98804084]
[1734408461764,2.3233,215.2,215.14,2.18]
[1734408462062,2.3233,215.2,215.15,4.98846609]
[1734408462262,2.3233,215.2,215.16,4.98846609]
[1734408462462,2.3229,215.24,215.14,2.18]
[1734408462662,3.1164,215.27,215.15,4.98980744]
[1734408462970,3.1164,215.27,215.16,6.15189958]
[1734408463164,3.1164,215.27,215.19,2.3233]
[1734408463364,3.1164,215.27,215.2,2.18]
[1734408464463,2.3229,215.23,215.2,2.18]
[1734408467271,2.3228,215.24,215.2,2.18]
[1734408470470,2.3228,215.24,215.21,4.98849856]
[1734408470671,2.3228,215.24,215.2,2.18]
[1734408470974,1.6177,215.27,215.21,4.98795735]
[1734408471176,2.18,215.34,215.2,2.18]
[1734408471367,0.74081372,215.33,215.21,4.98783118]
[1734408471672,0.74081372,215.33,215.2,2.18]
[1734408471976,0.74081372,215.33,215.21,4.98789515]
[1734408472178,0.74081372,215.33,215.22,4.98789515]
[1734408472370,2.3226,215.27,215.22,2.323]
[1734408473069,2.18,215.34,215.22,2.323]
[1734408473275,0.74080624,215.33,215.21,2.18]
[1734408473973,2.3229,215.24,215.21,2.18]
[1734408480680,2.3225,215.27,215.21,2.18]
[1734408481476,2.3225,215.27,215.22,7.3096296]
[1734408481779,2.3225,215.27,215.22,2.3229]
[1734408481979,2.3225,215.27,215.23,4.98631061]
[1734408482177,2.3225,215.27,215.22,2.3229]
[1734408482480,2.3225,215.27,215.23,4.98667976]
[1734408482673,2.3225,215.27,215.22,2.3229]
[1734408482979,2.3225,215.27,215.23,4.98653325]
[1734408483170,2.3225,215.27,215.24,4.98653325]
[1734408483378,2.3225,215.27,215.25,2.18]
[1734408484575,2.3226,215.26,215.25,2.18]
[1734408486978,2.3221,215.32,215.27,2.3224]
[1734408490583,2.3214,215.38,215.32,2.3219]
[1734408490775,2.3214,215.38,215.32,4.5019]
[1734408491684,2.3212,215.4,215.32,2.18]
[1734408492487,2.3212,215.4,215.34,2.3217]
[1734408492686,3.1871,215.45,215.34,2.3217]
[1734408492687,2.3212,215.39,215.34,2.3217]
[1734408498486,2.3211,215.4,215.33,2.3218]
[1734408498687,5.54618384,215.43,215.33,2.3218]
[1734408499380,0.74041296,215.42,215.33,2.3218]
[1734408499581,2.3213,215.38,215.33,2.3218]
[1734408500382,2.3214,215.37,215.34,2.18]
[1734408501582,2.3215,215.36,215.34,2.18]
[1734408502392,2.3218,215.34,215.29,2.3222]
[1734408502588,2.3218,215.34,215.3,2.18]
[1734408505490,2.3219,215.33,215.3,2.18]
[1734408506085,7.72618384,215.43,215.3,2.18]
[1734408506086,2.3217,215.34,215.3,2.18]
[1734408507292,2.3217,215.34,215.3,4.5022]
[1734408511290,7.72618384,215.43,215.23,4.51594613]
[1734408511496,0.7404233,215.42,215.24,7.14651209]
[1734408511697,0.7404233,215.42,215.25,6.128073]
[1734408511900,0.7404233,215.42,215.26,4.96651209]
[1734408512197,0.7404233,215.42,215.27,4.96819063]
[1734408512492,14.6904233,215.42,215.07,379.0]
[1734408512791,0.74064212,215.41,215.21,11.66924369]
[1734408512997,0.74064212,215.4,215.22,9.48924369]
[1734408513196,0.74064212,215.39,215.23,9.48924369]
[1734408513398,7.72618384,215.43,215.24,9.48924369]
[1734408513595,1.5445,215.38,215.25,6.13251453]
[1734408513898,1.5445,215.38,215.29,2.3222]
[1734408513899,2.3217,215.35,215.29,2.3222]
[1734408514095,2.3217,215.35,215.3,2.18]
[1734408514593,1.5445,215.38,215.3,2.18]
[1734408514796,2.3217,215.34,215.3,2.18]
[1734408522403,2.3216,215.36,215.3,2.18]
[1734408523398,2.3217,215.35,215.31,2.322]
[1734408523702,2.3217,215.35,215.3,2.18]
[1734408524506,2.3217,215.35,215.3,4.5022]
[1734408529203,2.3217,215.35,215.31,4.98470206]
[1734408529409,2.3217,215.35,215.3,4.5022]
[1734408529610,2.3217,215.35,215.31,4.98465444]
[1734408529908,2.3217,215.35,215.3,4.5022]
[1734408530208,2.3217,215.35,215.31,4.98676115]
[1734408530409,2.3217,215.35,215.3,4.5022]
[1734408530610,2.3217,215.35,215.31,4.98672664]
[1734408530902,2.3217,215.35,215.3,4.5022]
[1734408531109,2.3217,215.35,215.31,4.98667732]
[1734408531410,2.3217,215.35,215.3,4.5022]
[1734408531709,2.3218,215.34,215.31,4.98876373]
[1734408531908,2.3218,215.34,215.3,4.5022]
[1734408532104,2.3218,215.34,215.31,4.98883359]
[1734408532308,2.3218,215.34,215.3,4.5022]
[1734408532611,2.3218,215.34,215.31,4.98973777]
[1734408532806,2.3218,215.34,215.3,4.5022]
[1734408533007,2.3218,215.34,215.31,4.98986082]
[1734408533207,2.3218,215.34,215.32,4.98986082]
[1734408533510,2.3218,215.34,215.33,4.98986082]
[1734408533710,2.3218,215.34,215.3,4.5022]
[1734408533911,2.3218,215.34,215.31,4.99050769]
[1734408534212,2.3218,215.34,215.32,4.99096535]
[1734408534511,2.3216,215.36,215.3,4.5022]
[1734408534807,2.3216,215.36,215.31,4.99092668]
[1734408535111,2.3216,215.36,215.32,4.99157212]
[1734408535412,2.3216,215.36,215.31,2.3221]